fUSD/lending_fUSD_20240901
["ID","MTS","AMOUNT","RATE_DAILY","PERIOD"]
[336825325,1725195039920,-150.0,0.0001299,2]
[336825326,1725195039931,-213.33630603,0.00012999,2]
[336825327,1725195039940,-291.02293582,0.00012999,2]
[336825328,1725195039950,-150.21144922,0.00012999,2]
[336825329,1725195039960,-150.0,0.00012999,2]
[336825330,1725195039970,-14942.7742369,0.00012999,2]
[336825331,1725195039981,-1386.7237665,0.00012999,2]
[336825332,1725195039991,-3447.5686604,0.00012999,2]
[336825333,1725195040001,-150.0,0.00012999,2]
[336825335,1725195040011,-489222.09546202,0.00013,2]
[336825337,1725195040022,-1370850.38480727,0.00013,2]
[336825339,1725195040033,-150.0,0.00013,2]
[336825341,1725195040042,-4003678.09544289,0.00013,2]
[336825592,1725195042519,-1000.0,0.00013,2]
[336825613,1725195042679,-38532.7306735,0.00013,2]
[336825615,1725195042691,-8679.59506081,0.00013,2]
[336825617,1725195042702,-4078.9714258,0.00013,2]
[336825619,1725195042712,-1011.21766666,0.00013,2]
[336825622,1725195042724,-1605.35180376,0.00013,2]
[336825624,1725195042734,-391.22403067,0.00013,2]
[336825627,1725195042758,-1587.0000003,0.00013,2]
[336825628,1725195044343,-4514.99947003,0.00013,2]
[336825631,1725195045548,-291.02293582,0.00012999,2]
[336825632,1725195045558,-417.07706418,0.00013,2]
[336825633,1725195045595,-641.12702912,0.00013,2]
[336825634,1725195045607,-2660.46376001,0.00013,2]
[336825635,1725195045666,-187718.37418976,0.00013,2]
[336825636,1725195045678,-1294.63954852,0.00013,2]
[336825637,1725195045713,-3648.9525255,0.00013,2]
[336825638,1725195045783,-998.27115863,0.00013,2]
[336825639,1725195074184,352.99,0.00011001,2]
[336825640,1725195122608,3376.25131081,0.00023477,61]
[336825642,1725195457879,368.15615288,0.0001044,2]
[336825643,1725195457907,129.25384712,0.0001044,2]
[336825645,1725195559109,963.94131456,0.00027,120]
[336825648,1725195940701,506.87,0.00010325,2]
[336825649,1725195972460,550.0,0.00011,2]
[336825651,1725196231705,-299.6900001,0.00012152,2]
[336825652,1725196231716,-700.3099999,0.00012152,2]
[336825653,1725196231726,-248.82,0.00012194,2]
[336825654,1725196231735,-250.0,0.00012235,2]
[336825655,1725196231747,-184.0,0.00012237,2]
[336825656,1725196231756,-250.0,0.00012238,2]
[336825657,1725196231768,-993.09321812,0.00012265,2]
[336825658,1725196231779,-506.87,0.00012589,2]
[336825659,1725196231790,-1500.0,0.00012719,2]
[336825660,1725196231800,-1500.0,0.00012727,2]
[336825661,1725196231810,-2546.63,0.00012783,2]
[336825662,1725196231820,-300.0,0.00012783,2]
[336825663,1725196231828,-606.64,0.00012783,2]
[336825664,1725196231838,-565.14,0.00012784,2]
[336825665,1725196231849,-1689.48,0.00012784,2]
[336825666,1725196231859,-1336.93978027,0.00012784,2]
[336825667,1725196231870,-1186.80021973,0.00012784,2]
[336825668,1725196231879,-499.99,0.000128,2]
[336825669,1725196231889,-3962.49305218,0.000128,2]
[336825670,1725196231901,-1601.38575,0.000128,2]
[336825671,1725196231913,-846.08694448,0.000128,2]
[336825672,1725196231926,-508.11036067,0.000128,2]
[336825673,1725196231937,-432.000004,0.000128,2]
[336825674,1725196231948,-1351.56580233,0.000128,2]
[336825675,1725196231959,-2780.08729667,0.000128,2]
[336825676,1725196231972,-806.59811442,0.000128,2]
[336825677,1725196231983,-889.15149544,0.000128,2]
[336825678,1725196232068,-599.82225,0.000128,2]
[336825679,1725196232080,-599.41203506,0.000128,2]
[336825680,1725196232088,-1500.0,0.00012851,2]
[336825681,1725196232098,-605.60835,0.0001287,2]
[336825682,1725196232107,-150.0,0.00012896,2]
[336825683,1725196232116,-1117.0285,0.00012897,2]
[336825684,1725196232126,-11622.21019884,0.00012897,2]
[336825685,1725196232137,-389.84087267,0.00012897,2]
[336825686,1725196232148,-943.23829676,0.00012897,2]
[336825687,1725196232159,-3194.39963173,0.00012897,2]
[336825688,1725196232169,-3514.48543175,0.000129,2]
[336825689,1725196232179,-2768.72182236,0.000129,2]
[336825690,1725196232191,-2000.0,0.000129,2]
[336825691,1725196232201,-382.31751455,0.000129,2]
[336825692,1725196232213,-290.16336359,0.000129,2]
[336825693,1725196232228,-1687.10681101,0.000129,2]
[336825694,1725196232294,-66687.85212053,0.000129,2]
[336825695,1725196232308,-59055.78403621,0.000129,2]
[336825696,1725196232317,-1005.1379,0.000129,2]
[336825697,1725196232326,-1500.0,0.00012955,2]
[336825698,1725196232337,-500.0,0.00012973,2]
[336825699,1725196232347,-303.03020671,0.0001299,2]
[336825700,1725196232357,-150.0,0.0001299,2]
[336825701,1725196232366,-1921.0,0.0001299,2]
[336825702,1725196232377,-76172.07152204,0.00013,2]
[336825703,1725196232389,-660.79273002,0.00013,2]
[336825704,1725196232408,-250.0,0.00013,2]
[336825705,1725196232420,-562.4996314,0.00013,2]
[336825706,1725196232432,-4272.78728964,0.00013,2]
[336825707,1725196232444,-7517.22981859,0.00013,2]
[336825708,1725196232457,-456.75640146,0.00013,2]
[336825709,1725196232479,-401.44091038,0.00012783,2]
[336825724,1725196237828,-484.45908962,0.00012783,2]
[336825726,1725196237838,-1123.56476791,0.00012997,2]
[336825730,1725196237888,-5241.13075619,0.00012997,2]
[336825731,1725196237900,-18577.93804003,0.00012997,2]
[336825732,1725196237943,-155.87022341,0.00012997,2]
[336825733,1725196237953,-6744.07144084,0.00013,2]
[336825734,1725196238010,-479706.30187789,0.00013,2]
[336825735,1725196238020,-3978249.99638651,0.00013,2]
[336825736,1725196238029,-1000.0,0.00013,5]
[336825737,1725196238039,-1000.0,0.00013,5]
[336825738,1725196238048,-2000.0,0.00013,5]
[336825739,1725196238057,-2000.0,0.00013,5]
[336825740,1725196238067,-600.0,0.00013,2]
[336825741,1725196238075,-121149.34224428,0.00013,2]
[336825742,1725196238084,-453.88,0.00013,2]
[336825743,1725196238093,-461.1,0.00013,2]
[336825744,1725196238103,-4198.1321726,0.00013076,2]
[336825745,1725196238111,-94977.766245,0.00013076,2]
[336825746,1725196238121,-10707.5916951,0.00013076,2]
[336825747,1725196238130,-1000.0,0.00013521,2]
[336825748,1725196238140,-1000.0,0.00013671,2]
[336825749,1725196238148,-172.73,0.00013699,2]
[336825750,1725196238157,-200.0,0.00013699,2]
[336825751,1725196238166,-2751.0,0.00013699,2]
[336825753,1725196238175,-708.01,0.00013699,2]
[336825754,1725196238184,-500.0,0.00013699,2]
[336825756,1725196238194,-248.82,0.00013718,2]
[336825758,1725196238204,-10116.84068399,0.00013799,2]
[336825760,1725196238213,-419931.441898,0.000138,3]
[336825762,1725196238223,-500.0,0.00013873,2]
[336825764,1725196238233,-188.97,0.00013876,2]
[336825766,1725196238244,-260.0,0.0001397,2]
[336825769,1725196238253,-268.631895,0.00013973,2]
[336825770,1725196238262,-14376.71310523,0.00013984,2]
[336825772,1725196238271,-255.0,0.00014005,2]
[336825774,1725196238280,-420.0,0.00014022,2]
[336825776,1725196238289,-708.01,0.00014384,2]
[336825778,1725196238299,-819.95687691,0.00014419,2]
[336825780,1725196238308,-1000.0,0.00014421,2]
[336825782,1725196238318,-268.631895,0.00014795,2]
[336825784,1725196238328,-506.87,0.00014853,2]
[336825786,1725196238337,-173.40373627,0.000149,2]
[336825788,1725196238346,-211.81968982,0.000149,2]
[336825790,1725196238356,-211.8196898,0.000149,2]
[336825792,1725196238365,-260.0,0.0001497,2]
[336825794,1725196238375,-610.99377385,0.00015,2]
[336825796,1725196238385,-450.71646246,0.00015,2]
[336825798,1725196238394,-96139.76083893,0.00015,2]
[336825799,1725196238403,-125778.90695452,0.00015,2]
[336825801,1725196238412,-5389.0,0.00015,2]
[336825803,1725196238421,-496.0,0.00015,2]
[336825805,1725196238431,-5343.0,0.00015,2]
[336825807,1725196238440,-2000.0,0.00015,5]
[336825809,1725196238449,-2000.0,0.00015,5]
[336825811,1725196238459,-2000.0,0.00015,5]
[336825813,1725196238468,-1226.0,0.00015,2]
[336825815,1725196238478,-650.0,0.00015,2]
[336825817,1725196238487,-708.01,0.00015068,2]
[336825819,1725196238496,-14376.71310523,0.00015169,2]
[336825821,1725196238505,-1000.0,0.0001519,2]
[336825823,1725196238515,-390.0,0.00015205,2]
[336825825,1725196238524,-248.82,0.00015242,2]
[336825827,1725196238534,-605.60835,0.0001537,2]
[336825829,1725196238543,-587.0,0.00015381,2]
[336825831,1725196238553,-188.97,0.00015417,2]
[336825832,1725196238563,-268.631895,0.00015616,2]
[336825834,1725196238573,-708.01,0.00015753,2]
[336825836,1725196238583,-167.0,0.00015831,2]
[336825838,1725196238592,-166.18,0.00015831,2]
[336825840,1725196238602,-260.0,0.0001597,2]
[336825842,1725196238612,-150.0,0.0001599,2]
[336825844,1725196238622,-150.0,0.0001599,2]
[336825846,1725196238631,-1921.0,0.0001599,2]
[336825848,1725196238640,-625.30298767,0.00016,2]
[336825850,1725196238650,-160.6645695,0.00016286,2]
[336825852,1725196238659,-14376.71310523,0.00016353,2]
[336825854,1725196238668,-167.0,0.00016354,2]
[336825856,1725196238677,-166.18,0.00016354,2]
[336825858,1725196238686,-268.631895,0.00016438,2]
[336825860,1725196238695,-708.01,0.00016438,2]
[336825862,1725196238709,-5860.49,0.00016438,2]
[336825864,1725196238718,-1000.0,0.00016709,2]
[336825866,1725196238727,-248.82,0.00016767,2]
[336825868,1725196238735,-823.0,0.00016871,2]
[336825870,1725196238747,-167.0,0.00016876,2]
[336825872,1725196238756,-166.18,0.00016876,2]
[336825874,1725196238765,-188.97,0.00016959,2]
[336825875,1725196238773,-260.0,0.0001697,2]
[336825877,1725196238784,-6277.08344449,0.00017,2]
[336825879,1725196238794,-700.0,0.00017,2]
[336825881,1725196238803,-506.87,0.00017117,2]
[336825883,1725196238812,-268.631895,0.0001726,2]
[336825885,1725196238828,-167.0,0.00017399,2]
[336825887,1725196238837,-166.18,0.00017399,2]
[336825889,1725196238846,-172.73,0.00017534,2]
[336825891,1725196238855,-14376.71310523,0.00017538,2]
[336825893,1725196238864,-605.60835,0.0001787,2]
[336825895,1725196238873,-233.48,0.0001792,30]
[336825896,1725196238883,-167.0,0.00017921,2]
[336825898,1725196238892,-166.18,0.00017921,2]
[336825900,1725196238902,-260.0,0.0001797,2]
[336825902,1725196238911,-811.90529697,0.00017988,2]
[336825904,1725196238920,-268.631895,0.00018082,2]
[336825906,1725196238930,-1000.0,0.00018227,2]
[336825908,1725196238939,-248.82,0.00018291,2]
[336825910,1725196238949,-167.0,0.00018444,2]
[336825912,1725196238958,-166.18,0.00018444,2]
[336825914,1725196238968,-188.97,0.00018501,2]
[336825916,1725196238977,-1152.0,0.00018506,2]
[336825918,1725196238987,-14376.71310523,0.00018722,2]
[336825920,1725196238996,-268.631895,0.00018904,2]
[336825922,1725196239005,-795.0,0.00018934,2]
[336825924,1725196239014,-260.0,0.0001897,2]
[336825925,1725196239023,-1921.0,0.0001899,2]
[336825927,1725196239033,-4954.4132715,0.00019,14]
[336825929,1725196239042,-750.0,0.00019,2]
[336825931,1725196239052,-150.0,0.00019096,2]
[336825933,1725196239061,-150.0,0.00019096,2]
[336825935,1725196239076,-150.0,0.00019096,2]
[336825937,1725196239085,-150.0,0.00019096,2]
[336825939,1725196239095,-150.0,0.00019123,2]
[336825941,1725196239104,-150.0,0.00019178,2]
[336825943,1725196239113,-150.0,0.00019178,2]
[336825945,1725196239122,-35446.8,0.000192,2]
[336825947,1725196239131,-150.0,0.0001926,2]
[336825949,1725196239140,-150.0,0.0001926,2]
[336825951,1725196239150,-157.02,0.00019361,2]
[336825953,1725196239159,-506.87,0.00019381,2]
[336825955,1725196239168,-268.631895,0.00019726,2]
[336825957,1725196239178,-152.336491,0.00019899,2]
[336825959,1725196239187,-1151.38007,0.00019899,2]
[336825960,1725196239196,-1151.38007,0.00019899,2]
[336825962,1725196239205,-73550.63829601,0.000199,2]
[336825964,1725196239215,-14376.71310523,0.00019907,2]
[336825966,1725196239224,-795.0,0.00019931,2]
[336825968,1725196239234,-260.0,0.0001997,2]
[336825970,1725196239244,-150.18,0.0002,2]
[336825972,1725196239253,-169.0,0.0002,2]
[336825974,1725196239262,-280.07151384,0.0002,2]
[336825976,1725196239272,-22265.32331063,0.0002,2]
[336825978,1725196239282,-2000.0,0.0002,5]
[336825980,1725196239291,-2000.0,0.0002,5]
[336825982,1725196239301,-908.559874,0.0002,2]
[336825984,1725196239311,-1059.05,0.000201,7]
[336825986,1725196239325,-1613.0,0.00020299,2]
[336825988,1725196239335,-605.60835,0.0002037,2]
[336825990,1725196239345,-268.631895,0.00020548,2]
[336825992,1725196239355,-155.82142,0.00020708,3]
[336825994,1725196239365,-173.40373626,0.000209,2]
[336825996,1725196239374,-260.0,0.0002097,2]
[336825998,1725196239383,-795.0,0.0002098,2]
[336826000,1725196239393,-35446.8,0.00021,2]
[336826002,1725196239402,-996.12,0.00021,2]
[336826004,1725196239413,-800.0,0.00021,2]
[336826006,1725196239422,-14376.71310523,0.00021091,2]
[336826008,1725196239431,-155.0,0.0002113,8]
[336826010,1725196239441,-151.0,0.0002124,2]
[336826012,1725196239450,-172.73,0.0002137,2]
[336826013,1725196239460,-201.0,0.00021637,2]
[336826015,1725196239469,-506.87,0.00021645,2]
[336826017,1725196239479,-11503.0,0.000218,3]
[336826019,1725196239488,-3368.4,0.00021918,2]
[336826021,1725196239497,-3097.43,0.00021918,2]
[336826023,1725196239507,-150.0,0.00021918,2]
[336826025,1725196239517,-500.0,0.00021918,2]
[336826027,1725196239526,-577.09205792,0.00021918,2]
[336826029,1725196239535,-500.0,0.00021918,2]
[336826031,1725196239545,-500.0,0.00021918,2]
[336826033,1725196239554,-260.0,0.0002197,2]
[336826035,1725196239564,-11755.92619535,0.00021978,2]
[336826037,1725196239584,-1921.0,0.0002199,2]
[336826040,1725196239594,-282379.29866917,0.00022,10]
[336826043,1725196239607,-1235.02261279,0.00022,10]
[336826047,1725196239620,-1792.37067316,0.00022,10]
[336826050,1725196239631,-1662.12038026,0.00022,10]
[336826054,1725196239642,-575.30635287,0.00022,10]
[336826103,1725196240263,-470.73928808,0.00022,10]
[336826106,1725196240279,-13042.14392744,0.00022,10]
[336826108,1725196240290,-499.9996419,0.00022,10]
[336826110,1725196240301,-742.31407939,0.00022,10]
[336826112,1725196240311,-617.23,0.00022,10]
[336826114,1725196240325,-6013.0,0.00022,10]
[336826117,1725196240339,-861.50000005,0.00022,10]
[336826119,1725196240350,-7082.52976569,0.00022,10]
[336826121,1725196240361,-807.22744576,0.00022,10]
[336826123,1725196240372,-1525.63025769,0.00022,10]
[336826125,1725196240383,-13348.82627554,0.00022,10]
[336826127,1725196240392,-209.0,0.00022,2]
[336826129,1725196240401,-150.0,0.00022,7]
[336826131,1725196240411,-795.0,0.00022029,2]
[336826133,1725196240420,-400.0,0.0002217,2]
[336826135,1725196240430,-2000.0,0.000222,2]
[336826137,1725196240439,-1500.0,0.000222,2]
[336826139,1725196240448,-315.48,0.000222,2]
[336826141,1725196240457,-2258.0,0.00022267,2]
[336826143,1725196240467,-14376.71310523,0.00022276,2]
[336826145,1725196240476,-1966.43715294,0.000224,5]
[336826147,1725196240487,-8817.28104593,0.000224,5]
[336826150,1725196240503,-720.28180113,0.000224,5]
[336826152,1725196240512,-1000.0,0.00022466,2]
[336826153,1725196240521,-996.12,0.0002247,2]
[336826155,1725196240531,-150.0,0.00022495,2]
[336826157,1725196240540,-204.0,0.000225,11]
[336826159,1725196240549,-35446.8,0.000226,7]
[336826161,1725196240559,-500.0,0.00022762,2]
[336826163,1725196240571,-900.0,0.00022762,2]
[336826165,1725196240580,-5900.0,0.00022762,2]
[336826167,1725196240589,-1100.0,0.00022762,2]
[336826169,1725196240599,-5100.0,0.00022762,2]
[336826171,1725196240608,-605.60835,0.0002287,2]
[336826174,1725196240619,-24677.67,0.00022905,6]
[336826176,1725196240629,-260.0,0.0002297,2]
[336826178,1725196240639,-2900.0,0.00023,10]
[336826180,1725196240648,-209.0,0.00023,2]
[336826182,1725196240657,-850.0,0.00023,2]
[336826184,1725196240668,-150.0,0.00023,7]
[336826186,1725196240677,-155.82142,0.0002301,3]
[336826188,1725196240686,-2502.32,0.00023034,2]
[336826190,1725196240695,-150.0,0.00023071,2]
[336826192,1725196240706,-8890.72,0.00023091,2]
[336826194,1725196240716,-12510.66,0.00023128,2]
[336826196,1725196240725,-795.0,0.0002313,2]
[336826197,1725196240734,-2000.0,0.000232,2]
[336826199,1725196240743,-180.0,0.00023205,2]
[336826201,1725196240754,-156.43604076,0.0002322,2]
[336826203,1725196240762,-500.0,0.00023287,2]
[336826205,1725196240772,-2000.0,0.000233,2]
[336826207,1725196240782,-329.87393221,0.000233,2]
[336826209,1725196240793,-200.0,0.000233,2]
[336826211,1725196240802,-155.82142,0.000234,7]
[336826213,1725196240811,-87588.79,0.000234,15]
[336826215,1725196240824,-984.85,0.000234,15]
[336826217,1725196240833,-100000.0,0.000234,15]
[336826219,1725196240842,-2503.78,0.00023444,2]
[336826221,1725196240851,-5800.0,0.00023449,2]
[336826223,1725196240860,-5800.0,0.00023449,2]
[336826225,1725196240870,-5800.0,0.00023458,2]
[336826227,1725196240880,-5800.0,0.00023458,2]
[336826229,1725196240890,-315.48,0.0002346,2]
[336826231,1725196240900,-14376.71310523,0.0002346,2]
[336826233,1725196240909,-5800.0,0.00023466,2]
[336826235,1725196240919,-400.0,0.0002347,2]
[336826237,1725196240929,-5800.0,0.00023475,2]
[336826239,1725196240939,-151.0,0.0002348,7]
[336826241,1725196240948,-154.193908,0.0002348,7]
[336826243,1725196240958,-154.193908,0.0002348,7]
[336826245,1725196240967,-151.0,0.0002348,7]
[336826247,1725196240976,-151.0,0.0002348,7]
[336826249,1725196240986,-151.0,0.0002348,7]
[336826251,1725196240995,-151.0,0.0002348,2]
[336826253,1725196241003,-158.635005,0.0002348,7]
[336826255,1725196241013,-158.635005,0.0002348,7]
[336826257,1725196241022,-151.0,0.0002348,7]
[336826259,1725196241031,-151.0,0.0002348,7]
[336826261,1725196241041,-151.0,0.0002348,7]
[336826262,1725196241050,-151.0,0.0002348,7]
[336826265,1725196241060,-151.0,0.0002348,7]
[336826266,1725196241072,-151.0,0.0002348,7]
[336826268,1725196241081,-151.0,0.0002348,7]
[336826270,1725196241091,-151.0,0.0002348,7]
[336826273,1725196241101,-151.0,0.0002348,7]
[336826275,1725196241111,-1151.38007,0.0002348,7]
[336826277,1725196241122,-1151.38007,0.0002348,7]
[336826279,1725196241133,-151.0,0.0002348,7]
[336826281,1725196241142,-151.0,0.0002348,7]
[336826283,1725196241151,-151.0,0.0002348,7]
[336826285,1725196241161,-151.0,0.0002348,7]
[336826287,1725196241171,-151.0,0.0002348,7]
[336826289,1725196241180,-151.0,0.0002348,7]
[336826291,1725196241189,-151.0,0.0002348,7]
[336826293,1725196241199,-740418.42643827,0.0002348,14]
[336826295,1725196241208,-35000.0,0.00023482,2]
[336826297,1725196241217,-5800.0,0.00023483,2]
[336826299,1725196241226,-35000.0,0.00023491,2]
[336826301,1725196241236,-500.0,0.00023491,2]
[336826303,1725196241245,-5800.0,0.00023491,2]
[336826305,1725196241255,-1000.0,0.000235,2]
[336826306,1725196241264,-1000.0,0.000235,2]
[336826308,1725196241273,-1000.0,0.000235,2]
[336826310,1725196241282,-1000.0,0.000235,2]
[336826312,1725196241291,-1000.0,0.000235,2]
[336826314,1725196241301,-1000.0,0.000235,2]
[336826316,1725196241310,-1000.0,0.000235,2]
[336826318,1725196241321,-1000.0,0.000235,2]
[336826320,1725196241330,-3408749.32,0.000235,5]
[336826322,1725196241340,-1000.0,0.000235,2]
[336826324,1725196241350,-1000.0,0.000235,2]
[336826326,1725196241359,-496.0,0.000235,6]
[336826328,1725196241368,-155.82142,0.000235,7]
[336826330,1725196241378,-155.82142,0.000235,6]
[336826332,1725196241387,-496.0,0.000235,6]
[336826334,1725196241397,-193.0,0.000235,6]
[336826336,1725196241407,-150.0,0.000235,2]
[336826338,1725196241416,-8500.0,0.000235,2]
[336826340,1725196241425,-35000.0,0.000235,2]
[336826342,1725196241435,-5800.0,0.000235,2]
[336826344,1725196241444,-8500.0,0.000235,2]
[336826346,1725196241453,-151.0,0.000235,7]
[336826348,1725196241462,-8500.0,0.000235,2]
[336826350,1725196241472,-154.193908,0.000235,7]
[336826352,1725196241481,-154.193908,0.000235,7]
[336826354,1725196241490,-152.275996,0.000235,7]
[336826356,1725196241499,-151.0,0.000235,7]
[336826358,1725196241508,-151.0,0.000235,7]
[336826360,1725196241517,-151.0,0.000235,2]
[336826362,1725196241527,-158.635005,0.000235,7]
[336826364,1725196241536,-500.0,0.000235,2]
[336826366,1725196241545,-158.635005,0.000235,7]
[336826368,1725196241555,-151.0,0.000235,7]
[336826370,1725196241565,-272.732963,0.000235,7]
[336826372,1725196241576,-151.0,0.000235,7]
[336826374,1725196241585,-197.227292,0.000235,7]
[336826376,1725196241595,-217.452,0.000235,7]
[336826378,1725196241605,-4900.40950117,0.000235,2]
[336826380,1725196241615,-151.0,0.000235,7]
[336826382,1725196241624,-151.0,0.000235,7]
[336826384,1725196241633,-151.0,0.000235,7]
[336826386,1725196241643,-1151.38007,0.000235,7]
[336826388,1725196241652,-1151.38007,0.000235,7]
[336826389,1725196241662,-151.69368,0.000235,7]
[336826391,1725196241671,-201.726936,0.000235,7]
[336826393,1725196241680,-151.0,0.000235,7]
[336826395,1725196241690,-5800.0,0.000235,2]
[336826397,1725196241700,-151.0,0.000235,7]
[336826399,1725196241714,-151.0,0.000235,7]
[336826401,1725196241724,-151.0,0.000235,7]
[336826403,1725196241733,-151.0,0.000235,7]
[336826405,1725196241743,-260.0,0.00023528,2]
[336826408,1725196241754,-260.0,0.00023528,2]
[336826410,1725196241764,-260.0,0.00023528,2]
[336826411,1725196241773,-260.0,0.00023528,2]
[336826413,1725196241782,-260.0,0.00023528,2]
[336826415,1725196241793,-260.0,0.00023528,2]
[336826417,1725196241802,-260.0,0.00023528,2]
[336826419,1725196241811,-260.0,0.00023528,2]
[336826421,1725196241823,-209.0,0.00023528,2]
[336826423,1725196241832,-209.0,0.00023528,2]
[336826425,1725196241841,-209.0,0.00023528,2]
[336826427,1725196241851,-209.0,0.00023528,2]
[336826429,1725196241860,-201.0,0.00023528,2]
[336826431,1725196241870,-201.0,0.00023528,2]
[336826433,1725196241880,-201.0,0.00023528,2]
[336826435,1725196241890,-201.0,0.00023528,2]
[336826437,1725196241900,-201.0,0.00023528,2]
[336826440,1725196241911,-201.0,0.00023528,2]
[336826442,1725196241921,-155.82142,0.00023528,2]
[336826444,1725196241932,-2503.78,0.00023545,2]
[336826446,1725196241942,-303.6339816,0.00023559,2]
[336826448,1725196241953,-344844.29270393,0.0002356,15]
[336826450,1725196241967,-141788.03169756,0.0002356,15]
[336826452,1725196241978,-60335.12837171,0.0002356,15]
[336826454,1725196241989,-688.59429274,0.0002356,15]
[336826457,1725196242000,-450.5318555,0.0002356,15]
[336826459,1725196242014,-46374.92915533,0.0002356,15]
[336826461,1725196242026,-329.595,0.0002356,15]
[336826463,1725196242038,-990.07,0.0002356,15]
[336826548,1725196242767,-1130.77964873,0.0002356,15]
[336826550,1725196242779,-3397.61035775,0.0002356,15]
[336826552,1725196242792,-3799.999993,0.0002356,15]
[336826555,1725196242803,-2743.43994,0.0002356,15]
[336826559,1725196242814,-670.81848557,0.0002356,15]
[336826562,1725196242830,-3075.72210345,0.0002356,15]
[336826564,1725196242841,-582.53249995,0.0002356,15]
[336826566,1725196242852,-7632.33263246,0.0002356,15]
[336826569,1725196242875,-320.11,0.0002356,15]
[336826571,1725196242887,-512.00786555,0.0002356,15]
[336826574,1725196242899,-701.666667,0.0002356,15]
[336826576,1725196242911,-1175.26064,0.0002356,15]
[336826578,1725196242925,-1006.62630079,0.0002356,15]
[336826581,1725196242936,-352.72799642,0.0002356,15]
[336826584,1725196242959,-1744.5,0.0002356,15]
[336826586,1725196242970,-513.18500005,0.0002356,15]
[336826589,1725196242982,-557.84664193,0.0002356,15]
[336826591,1725196242994,-660.19,0.0002356,15]
[336826593,1725196243006,-2204.45423647,0.0002356,15]
[336826595,1725196243018,-15843.63179293,0.0002356,15]
[336826598,1725196243033,-1999412.528557,0.0002356,15]
[336826600,1725196243046,-695.84866301,0.0002356,15]
[336826603,1725196243057,-5674.84497642,0.0002356,15]
[336826605,1725196243071,-489.29187735,0.0002356,15]
[336826607,1725196243087,-500.0,0.00014973,2]
[336826609,1725196243096,-5297.7866457,0.0002356,15]
[336826612,1725196243108,-1269.9797806,0.0002356,15]
[336826614,1725196243119,-438.57195091,0.0002356,15]
[336826797,1725196244894,-2760.10781179,0.0002356,15]
[336826799,1725196244905,-2063.5485126,0.0002356,15]
[336826804,1725196244946,-601.23027963,0.00015521,2]
[336826806,1725196244957,-584.94556398,0.0002356,15]
[336826808,1725196244968,-23045.08068141,0.0002356,15]
[336826811,1725196244979,-2251.76770911,0.0002356,15]
[336826813,1725196244990,-5150.83994801,0.0002356,15]
[336826815,1725196245001,-835.04991627,0.0002356,15]
[336826888,1725196245719,-1650.24238056,0.0002356,15]
[336826890,1725196245731,-430302.86163176,0.0002356,15]
[336826893,1725196245754,-315.79999999,0.0002356,15]
[336826900,1725196245810,-332.07231569,0.0002356,15]
[336826902,1725196245821,-487.0347352,0.0002356,15]
[336826904,1725196245832,-15246.41514133,0.0002356,15]
[336826909,1725196245869,-495.15,0.0002356,15]
[336826916,1725196245927,-5990.73861914,0.0002356,15]
[336826923,1725196245989,-3348.50149363,0.0002356,15]
[336826925,1725196246000,-476947.26995534,0.0002356,15]
[336826927,1725196246012,-15539.40003336,0.0002356,15]
[336826930,1725196246024,-9831.76687634,0.0002356,15]